[Event "American Cup Open Champions 2024"]
[Site "Saint Louis"]
[Date "2024.03.15"]
[Round "2.5"]
[White "Caruana, Fabiano"]
[Black "Aronian, Levon"]
[Result "0-1"]
[ECO "C54"]
[WhiteElo "2804"]
[BlackElo "2722"]
[Annotator "TA"]
[PlyCount "112"]
[EventDate "2024.03.11"]
[EventType "k.o."]
[EventCountry "USA"]
[SourceTitle "playchess.com"]
[Source "ChessBase"]
[SourceQuality "1"]
[TimeControl "600+5"]

{[%evp 9,112,14,21,11,29,37,33,25,21,26,20,27,35,26,23,11,16,0,6,0,0,-11,0,-12,-7,-33,-15,-24,-18,-61,-71,-64,-54,-56,-80,-74,-81,-81,-75,-79,-77,-81,-82,-85,-75,-69,-69,-81,-72,-64,-64,-75,-70,-93,-64,-98,-69,-69,-73,-99,-101,-104,-105,-91,-94,-95,-87,-204,-164,-241,-227,-296,-297,-285,-292,-318,-334,-519,-519,-519,-512,-519,-512,-512,-505,-489,-489,-477,-477,-464,-470,-470,-445,-803,-757,-941,-841,-1501,-1512,-1817,-1647,-29964,-29969,-29987,-29988]} 1. e4 {[%emt 0:07:08]} e5 {[%emt 0:07:07]} 2. Nf3 {[%emt 0:00:05]} Nc6 {[%emt 0:00:04]} 3. Bc4 {[%emt 0:00:05]} Bc5 {[%emt 0:00:05]} 4. c3 {[%emt 0:00:05]} Nf6 {[%emt 0:00:05]} 5. d3 {[%emt 0:00:05]} O-O {[%emt 0:00:05]} 6. a4 {[%emt 0:00:11]} d5 {[%emt 0:00:35]} 7. exd5 {[%emt 0:00:05]} Nxd5 {[%emt 0:00:04]} 8. a5 {[%emt 0:00:17] Repels Nb6. White is slightly better.} Nf6 {[%emt 0:00:43]} 9. Nbd2 {[%emt 0:01:22]} a6 {[%emt 0:00:16]} 10. O-O {[%emt 0:00:08]} h6 {[%emt 0:00:11]} 11. h3 {[%emt 0:00:10]} Re8 {[%emt 0:00:12]} 12. b4 {[%emt 0:00:10]} Ba7 {[%emt 0:00:16]} 13. Qe2 {[%emt 0:00:32]} Be6 {[%emt 0:00:28]} 14. Bxe6 {[%emt 0:00:10]} Rxe6 {[%emt 0:00:04]} 15. Ne4 {[%emt 0:00:04]} Nd5 {[%emt 0:00:07]} 16. Bd2 {[%emt 0:00:10]} f5 {[%emt 0:00:10]} 17. Nc5 {[%emt 0:00:15]} Bxc5 18. bxc5 {[%emt 0:00:04]} Qe7 {[%emt 0:00:16][%cal Oa8e8]} 19. c4 {[%emt 0:00:09]} Nf6 {[%emt 0:00:11][%cal Oe5e4] A dynamic duo of knights.} 20. Bc3 {[%emt 0:00:11]} e4 {[%emt 0:00:16]} (20... Qxc5 $2 21. d4 Qd6 22. d5 $18 (22. Nxe5 Ne4 $17) (22. dxe5 Qc5 $11)) 21. Nd4 {[%emt 0:00:10]} Nxd4 {[%emt 0:00:05]} 22. Bxd4 {[%emt 0:00:04]} Rd8 {[%emt 0:00:07]} 23. Bxf6 {[%emt 0:00:05]} Qxf6 {[%emt 0:00:06]} 24. dxe4 {[%emt 0:00:08]} Rxe4 {[%emt 0:00:06]} 25. Qc2 {[%emt 0:00:04]} Qc6 {[%emt 0:00:08] Black is much more active.} 26. Rab1 {[%emt 0:00:10]} Rdd4 {[%emt 0:00:17][%cal Bd8d4,Bd4c4,Bc4c5][%mdl 32]} 27. Qb3 {[%emt 0:00:06]} Rxc4 {[%emt 0:00:05]} (27... Qxc5 28. Qxb7 Qxa5 29. Qa8+ Kh7 30. Rb5 $11) (27... Re6 {with more complications.} 28. Rfd1 Rg6 29. g3 Qxc5 30. Kg2 Rxc4 31. Rbc1 Rc6) 28. Qxb7 {[%emt 0:00:08]} Qxb7 {[%emt 0:00:06]} (28... Qxc5 $6 29. Qxa6 Qc6 (29... Kh7 30. Rb5 $11) 30. Qxc6 Rxc6 31. Rfc1 Rxc1+ 32. Rxc1 $14) 29. Rxb7 {[%emt 0:00:04]} Rxc5 $15 {[%cal Of5f4][%mdl 4096] Endgame. KRR-KRR} 30. Rd1 {[%emt 0:00:04]} Re7 {[%emt 0:00:13][%cal Og8f7]} (30... Rxa5 31. Rxc7 f4 32. Kh2 $11) 31. Ra1 {[%emt 0:00:04]} Kf7 {[%emt 0:00:06]} 32. h4 {[%emt 0:00:07]} Kg6 {[%emt 0:00:05]} 33. g3 {[%emt 0:00:04]} f4 {[%emt 0:00:05] White is on the road to losing.} 34. gxf4 {[%emt 0:00:05]} Re4 {[%emt 0:00:06]} 35. Ra7 {[%emt 0:00:05]} Rc6 {[%emt 0:00:04]} (35... Rxf4 $6 36. Rxa6+ Kf7 37. Ra3 $11) 36. Rd1 {[%emt 0:00:07]} Rxf4 {[%emt 0:00:05]} 37. Rd7 {[%emt 0:00:04]} Rf7 {[%emt 0:00:04]} 38. Rd3 {[%emt 0:00:04]} (38. h5+ $17 {was called for.} Kf6 (38... Kxh5 $2 39. Rxf7 g5 40. Kg2 $18) 39. Rxf7+ Kxf7 40. Ra8) 38... Rf5 {[%emt 0:00:06]} 39. Ra3 {[%emt 0:00:05] [#]} (39. Kg2 $142) 39... Kh5 $1 $19 {[%emt 0:00:06]} 40. Rg3 {[%emt 0:00:04]} g6 {[%emt 0:00:04]} ({Weaker is} 40... Rxa5 41. Rxg7 Rac5 (41... Kxh4 42. Raxc7 Rxc7 43. Rxc7 $15) 42. Kh2 $17) 41. Ra8 {[%emt 0:00:09]} Kxh4 {[%emt 0:00:05][%cal Oc6f6]} 42. Kg2 {[%emt 0:00:04]} Rg5 {[%emt 0:00:04]} (42... Rxa5 43. Rh3+ Kg5 44. Rg3+ Kf6 45. Rf8+ Ke7 46. Rgf3 $19) 43. Rb8 {[%emt 0:00:05]} (43. Rxg5 $142 Kxg5 44. Kg1) 43... Rxg3+ {[%emt 0:00:05]} (43... Rxa5 44. Rb1) 44. fxg3+ {[%emt 0:00:04] KR-KR} Kg5 {[%emt 0:00:04]} (44... Kg4 45. Rb4+ Kf5 46. Kh3 $19) 45. Kf3 {[%emt 0:00:05]} Rc5 {[%emt 0:00:04]} 46. Rb7 {[%emt 0:00:03]} h5 {[%emt 0:00:05]} (46... Rxa5 $2 47. Rxc7 Rd5 48. Kg2 $19) 47. Ra7 {[%emt 0:00:04]} Rxa5 {[%emt 0:00:04] And now ...Ra3+ would win.} 48. Rxc7 {[%emt 0:00:04]} Rf5+ {[%emt 0:00:04]} 49. Kg2 {[%emt 0:00:04]} a5 {[%emt 0:00:09]} 50. Rc6 {[%emt 0:00:04]} Rb5 {[%emt 0:00:04]} 51. Rc8 {[%emt 0:00:07]} (51. Ra6 $142 Kf5 52. Kh3) 51... Kf5 {[%emt 0:00:06]} 52. Rf8+ {[%emt 0:00:04]} Ke4 {[%emt 0:00:04]} 53. Rf6 {[%emt 0:00:04]} g5 {[%emt 0:00:04] ...a4 would now be deadly.} 54. Rh6 {[%emt 0:00:06]} Kd3 {[%emt 0:00:05]} 55. Rxh5 {[%emt 0:00:01]} a4 56. Kf3 {[%emt 0:00:11] [#]} g4+ $1 {[%emt 0:00:08][%mdl 512] Weighted Error Value: White=0.37/Black=0.03 (flawless) .  Mistake:       	White=4     	---        Inaccurate:     	White=5     	Black=1      OK:         	White=17    	Black=25     Best:        	White=3     	Black=2} 0-1

[Event "American Cup Open Champions 2024"]
[Site "Saint Louis"]
[Date "2024.03.15"]
[Round "2.6"]
[White "Aronian, Levon"]
[Black "Caruana, Fabiano"]
[Result "1-0"]
[ECO "B51"]
[WhiteElo "2722"]
[BlackElo "2804"]
[Annotator "TA"]
[PlyCount "67"]
[EventDate "2024.03.11"]
[EventType "k.o."]
[EventCountry "USA"]
[SourceTitle "playchess.com"]
[Source "ChessBase"]
[SourceQuality "1"]
[TimeControl "600+5"]

{[%evp 9,67,10,28,31,25,31,38,27,45,47,46,5,8,14,22,0,0,0,0,-1,-4,0,8,10,50,57,66,0,0,0,0,-5,37,-76,-23,-21,-25,-20,-20,-18,-28,-21,-30,-37,-23,-45,-42,-48,-37,-32,-37,-122,0,0,0,0,308,306,29978,29954]} 1. e4 {[%emt 0:07:07]} c5 {[%emt 0:07:07]} 2. Nf3 {[%emt 0:00:04]} d6 {[%emt 0:00:04]} 3. Bb5+ {[%emt 0:00:08]} Nd7 {[%emt 0:00:05]} 4. O-O {[%emt 0:00:07]} a6 {[%emt 0:00:04]} 5. Bd3 {[%emt 0:00:04]} g6 {[%emt 0:00:11]} 6. c3 {[%emt 0:00:08]} Bg7 {[%emt 0:00:04]} 7. Bc2 {[%emt 0:00:06]} Ngf6 {[%emt 0:00:06][%cal Bg8f6,Bf6e8,Be8c7,Bc7e6][%mdl 32]} 8. d4 {[%emt 0:00:04] White is slightly better.} O-O {[%emt 0:00:07]} 9. e5 {[%emt 0:00:15]} Ne8 {[%emt 0:00:28]} 10. Re1 {[%emt 0:00:35]} dxe5 {[%emt 0:00:06]} 11. dxe5 {[%emt 0:00:04]} Nc7 {[%emt 0:00:04]} 12. Bf4 {[%emt 0:00:20]} Ne6 {[%emt 0:00:14]} 13. Bg3 {[%emt 0:00:05]} b5 {[%emt 0:00:05]} 14. Nbd2 {[%emt 0:00:13]} c4 {[%emt 0:00:10]} 15. Qe2 {[%emt 0:00:16]} Bb7 {[%emt 0:00:06]} 16. Ne4 {[%emt 0:00:19]} h6 {[%emt 0:00:20]} 17. h4 {[%emt 0:00:04]} Qb6 {[%emt 0:00:14]} 18. a4 {[%emt 0:00:25]} (18. h5 $14) 18... Rad8 {[%emt 0:00:10]} 19. axb5 {[%emt 0:00:10]} axb5 {[%emt 0:00:04]} 20. Rad1 {[%emt 0:00:26][%cal Oh4h5]} Bc6 {[%emt 0:00:12]} 21. b3 {[%emt 0:00:05]} (21. h5 $14 {stays ahead.}) 21... cxb3 {[%emt 0:00:33]} (21... Bxe4 $17 22. Qxe4 Nec5 (22... Ndc5 23. Qe3 $11)) 22. Bxb3 $11 {[%emt 0:00:04]} Ndc5 {[%emt 0:00:05]} 23. Nxc5 {[%emt 0:00:08]} Nxc5 {[%emt 0:00:04]} 24. Qe3 {[%emt 0:00:27]} Bxf3 {[%emt 0:00:43]} 25. gxf3 {[%emt 0:00:04]} Qc6 {[%emt 0:00:03] Prevents e6} 26. Rxd8 Rxd8 {[%emt 0:00:04]} 27. Rd1 {[%emt 0:00:25]} Rxd1+ {[%emt 0:00:07]} 28. Bxd1 {[%emt 0:00:04]} Na4 {[%emt 0:00:06]} 29. e6 $1 {[%emt 0:00:04]} f5 {[%emt 0:00:15]} (29... Qxe6 $5 30. Qxe6 fxe6 $15) 30. Qa7 {[%emt 0:00:08]} (30. Bb3 $15) 30... Bf6 {[%emt 0:00:12]} (30... Qxc3 $2 {loses.} 31. Qxe7 Qf6 (31... Qe1+ $2 32. Kg2 $18) 32. Qe8+ Qf8 33. Qxg6 $18) (30... Qxe6 $17 {White must now prevent ...Qe1+.} 31. Bxa4 bxa4 32. Qxa4 Bxc3) 31. Qd7 {[%emt 0:00:06]} Qa8 {[%emt 0:00:08]} 32. c4 {[%emt 0:00:06][%cal Bc3c4,Bc4b5,Bb5b6][%mdl 32]} Nc3 {[%emt 0:00:18][%mdl 8192]} (32... Nc5 $11 {and Black has nothing to worry.} 33. Qxb5 Nxe6) 33. cxb5 $18 {[#] Threatens to win with b6.} h5 $2 {[%emt 0:00:08]} (33... Nd5 $18 34. Qc6 Qa2) 34. b6 {[%emt 0:00:02] Weighted Error Value: White=0.18 (very precise) /Black=0.42.  Loses game:     	---       	Black=1      Mistake:       	White=3     	Black=3      Inaccurate:     	White=1     	Black=2      OK:         	White=7     	Black=10     Best:        	White=1     	---        Strong:       	White=1     	---} 1-0

[Event "American Cup Open Champions 2024"]
[Site "Saint Louis"]
[Date "2024.03.16"]
[Round "3.1"]
[White "Aronian, Levon"]
[Black "Robson, Ray"]
[Result "1-0"]
[ECO "B90"]
[WhiteElo "2722"]
[BlackElo "2696"]
[Annotator "TA"]
[PlyCount "81"]
[EventDate "2024.03.11"]
[EventType "k.o."]
[EventCountry "USA"]
[SourceTitle "playchess.com"]
[Source "ChessBase"]
[SourceQuality "1"]
[TimeControl "5400+30"]

{[%evp 14,81,12,12,35,2,8,0,0,-5,44,47,60,47,52,32,44,34,39,26,25,35,43,0,0,0,13,11,22,36,45,49,46,47,64,45,81,72,74,70,55,77,70,66,99,97,89,96,77,8,232,227,315,308,246,0,154,161,164,160,167,152,197,159,154,156,210,207,704,685]} 1. e4 {[%emt 0:00:03]} c5 {[%emt 0:02:04]} 2. Nf3 {[%emt 0:00:03]} d6 {[%emt 0:00:16]} 3. d4 {[%emt 0:00:09]} cxd4 {[%emt 0:00:17]} 4. Nxd4 {[%emt 0:00:03]} Nf6 {[%emt 0:00:20]} 5. Nc3 {[%emt 0:00:05]} a6 {[%emt 0:00:22]} 6. Bd3 {[%emt 0:00:02]} g6 {[%emt 0:01:16]} 7. Be2 {[%emt 0:04:19] 7.f3 is the modern continuation. B90: Sicilian Najdorf: Unusual White 6th moves, 6 Be3 Ng4 and 6 Be3 e5.} Bg7 {[%emt 0:05:56]} 8. Be3 {[%emt 0:00:05]} Nc6 {[%emt 0:14:07]} 9. O-O {[%emt 0:03:42]} O-O {[%emt 0:02:51]} 10. a4 $5 {[%emt 0:00:39][%mdl 4] Leaves trodden paths.} Bd7 {[%emt 0:09:01]} 11. Qd2 $5 {[%emt 0:04:35][%mdl 4] [#] Exploring less charted territory.} b5 $146 {[%emt 0:11:59]} (11... Rc8 $1 $11) ({Predecessor:} 11... Rc8 12. f3 Ne5 13. b3 e6 14. a5 Qc7 15. Na4 Bxa4 16. Rxa4 d5 17. exd5 Nxd5 18. Bf2 Nc3 19. Rb4 Rfd8 20. f4 Nc6 21. Rc4 Bxd4 22. Bxd4 Nxe2+ {0-1 Ribeiro,G (2187)-Kozul,Z (2532) EU-ch Rapid Zagreb 2023 (2)}) 12. axb5 $14 {[%emt 0:04:23]} Nxd4 {[%emt 0:00:29]} 13. Bxd4 {[%emt 0:00:04]} (13. Qxd4 Ng4 14. Qd2 (14. e5 Bxe5 15. Qd2 Nxe3 $17) 14... Nxe3 15. Qxe3 Bxc3 $16) 13... Bxb5 {[%emt 0:12:03]} 14. Rfd1 {[%emt 0:07:19]} Bxe2 {[%emt 0:04:57]} 15. Qxe2 {[%emt 0:00:16]} a5 {[%emt 0:03:01]} 16. e5 {[%emt 0:03:33]} dxe5 {[%emt 0:00:58]} 17. Bxe5 {[%emt 0:06:59]} Qb6 {[%emt 0:01:05]} 18. Nb5 {[%emt 0:00:37]} Rfc8 {[%emt 0:01:16]} 19. b3 {[%emt 0:03:37]} Qb7 {[%emt 0:07:44]} 20. Ra4 {[%emt 0:05:03]} Rc5 {[%emt 0:06:15]} 21. c4 {[%emt 0:00:50]} Qe4 {[%emt 0:00:55]} 22. Qxe4 {[%emt 0:02:53]} Nxe4 {[%emt 0:00:02]} 23. Bxg7 {[%emt 0:04:28]} Kxg7 {[%emt 0:00:02]} 24. f3 {[%emt 0:00:12]} Nf6 {[%emt 0:07:24]} 25. Rda1 {[%emt 0:01:04]} Rd8 {[%emt 0:00:31]} 26. Rxa5 {[%emt 0:00:06]} Rd3 {[%emt 0:00:25]} 27. R5a3 {[%emt 0:00:18]} Nd5 {[%emt 0:00:38]} 28. Re1 $1 {[%emt 0:02:42]} Nf4 {[%emt 0:04:19]} 29. Re4 {[%emt 0:01:55]} (29. Rxe7 $6 Rd1+ 30. Kf2 Rd2+ 31. Ke1 (31. Ke3 Re2+ 32. Kxf4 Rxe7 $11) 31... Rxg2 $11) 29... Rf5 {[%emt 0:02:46]} 30. b4 {[%emt 0:04:09]} (30. Rxe7 $6 Rd1+ 31. Kf2 Rd2+ 32. Kf1 Rh5 $11) 30... Rd2 {[%emt 0:01:36] [#]} 31. Kf1 {[%emt 0:00:01]} (31. Rxe7 $6 Rxg2+ 32. Kf1 Rd2 $11) (31. g4 $1 $16 {[%cal Rg4f5]} Rf6 32. Rxe7) 31... Rb2 $2 {[%emt 0:00:33]} (31... Rh5 $11 {and Black is okay.} 32. Rd4 (32. Rxf4 Rxh2 33. Kg1 Rdxg2+ 34. Kf1 Rb2 $11) 32... Rc2 33. Rxf4 Rxh2) 32. Nd4 $18 {[%emt 0:01:13]} (32. Rxe7 Rh5 33. h3 Rb1+ 34. Re1 Rxb4 $11) 32... Rf6 {[%emt 0:00:30]} 33. Rb3 {[%emt 0:00:21]} (33. Rxe7 Rxb4 34. Re4 Rb1+ 35. Kf2 Rb2+ 36. Ne2 Ne6 $11) 33... Rd2 {[%emt 0:00:30]} 34. Rb1 $2 {[%emt 0:05:22]} (34. Ke1 $18 Rxg2 (34... Nxg2+ $2 35. Kxd2 h5 36. b5 $18) 35. b5) 34... e5 $2 {[%emt 0:00:30]} (34... Rxg2 $11 35. Rxf4 (35. Rxe7 $2 {loses.} Rxh2 36. Kg1 Rd2 $19) 35... Rxf4 36. Ne6+ (36. Kxg2 Rxd4 37. Rc1 Rd2+ 38. Kg3 Rb2 $11) 36... fxe6 37. Kxg2 Rxc4) 35. Ne2 $16 {[%emt 0:01:13]} Nd3 {[%emt 0:00:10]} 36. b5 {[%emt 0:00:50]} Rd6 {[%emt 0:00:49]} 37. Nc3 {[%emt 0:01:52]} Rf2+ {[%emt 0:00:31]} 38. Kg1 {[%emt 0:00:05]} Rc2 {[%emt 0:00:21]} 39. Nd5 {[%emt 0:00:17]} ({Wrong is} 39. b6 $2 Rxb6 (39... Rxc3 40. h3 $17) 40. Nb5 Ra6 $19) 39... Nc5 {[%emt 0:00:39]} (39... Rd8 $16) 40. Ne3 $18 {[%emt 0:01:18]} Re2 $2 {[%emt 0:00:31]} (40... Rc3 41. Rxe5 Nd7) 41. Nf5+ {[%emt 0:00:13]} 1-0

[Event "American Cup Open Champions 2024"]
[Site "Saint Louis"]
[Date "2024.03.16"]
[Round "3.2"]
[White "Robson, Ray"]
[Black "Aronian, Levon"]
[Result "0-1"]
[ECO "D86"]
[WhiteElo "2696"]
[BlackElo "2722"]
[Annotator "TA"]
[PlyCount "124"]
[EventDate "2024.03.11"]
[EventType "k.o."]
[EventCountry "USA"]
[SourceTitle "playchess.com"]
[Source "ChessBase"]
[SourceQuality "1"]
[TimeControl "5400+30"]

{[%evp 34,124,25,-10,-14,-25,-20,-17,-3,-12,-14,0,0,0,0,-87,-87,-86,-89,-115,-116,-121,-118,-138,-138,-162,-179,-176,-130,-180,-190,-205,-194,-176,-181,-193,-156,-156,-156,-172,-157,-170,-153,-270,-264,-247,-171,-170,-166,-150,-12,-12,-22,-15,-14,-11,-11,-11,-18,-633,-583,-1618,-1112,-1879,-1751,-1987,-1693,-2006,-1854,-1702,-1672,-1788,-1430,-29960,-29961,-29974,-29975,-29978,-29979,-29979,-29980,-29980,-29980,-29981,-29982,-29982,-29982,-29985,-29986,-29986,-29987,-29988,-29987]} 1. d4 {[%emt 1:15:42]} Nf6 {[%emt 1:15:41]} 2. c4 {[%emt 0:00:24]} g6 {[%emt 0:00:22]} 3. Nc3 {[%emt 0:00:26]} d5 {[%emt 0:00:21]} 4. cxd5 {[%emt 0:00:24]} Nxd5 {[%emt 0:00:21]} 5. e4 {[%emt 0:00:24]} Nxc3 {[%emt 0:00:21]} 6. bxc3 {[%emt 0:00:23]} Bg7 {[%emt 0:00:22]} 7. Bc4 {[%emt 0:00:27]} a6 $5 {[%emt 0:00:21][%mdl 4] An interesting side line. D86: Exchange Grünfeld: Classical Line (7 Bc4).} 8. h4 $146 {[%emt 0:03:05]} ({Predecessor:} 8. Ne2 O-O 9. a4 Nd7 10. O-O b6 11. Bd5 Rb8 12. e5 e6 13. Bc6 Bb7 14. Bxb7 Rxb7 15. Qd3 {1-0 Teixeira,V (1800)-De Souza,E (1882) Manaus Amazonense Cup 2022 (4)}) 8... c5 {[%emt 0:00:23]} 9. Ne2 {[%emt 0:05:07]} h5 {[%emt 0:01:11]} 10. O-O {[%emt 0:01:05]} O-O {[%emt 0:00:38]} 11. Be3 {[%emt 0:02:19]} Nd7 {[%emt 0:01:19]} 12. Qd2 {[%emt 0:01:13]} b5 {[%emt 0:01:21]} 13. Bd5 {[%emt 0:01:26]} Rb8 {[%emt 0:01:23]} 14. dxc5 {[%emt 0:00:33]} Qc7 {[%emt 0:00:21]} 15. Nd4 {[%emt 0:00:59]} Ne5 {[%emt 0:01:14]} 16. Bf4 {[%emt 0:01:07]} Qxc5 {[%emt 0:02:46]} 17. Bxe5 {[%emt 0:00:41]} Bxe5 {[%emt 0:00:22]} 18. Nc6 {[%emt 0:00:24]} Bxc3 {[%emt 0:01:29]} 19. Nxe7+ {[%emt 0:02:06]} Qxe7 {[%emt 0:02:46]} 20. Qxc3 {[%emt 0:00:21]} Bb7 {[%emt 0:00:44]} 21. Qg3 {[%emt 0:01:29]} Bxd5 {[%emt 0:00:22]} 22. exd5 {[%emt 0:00:20]} Rbd8 {[%emt 0:00:23]} 23. Rfd1 {[%emt 0:00:29]} Rd6 {[%emt 0:00:36]} 24. a4 {[%emt 0:00:35]} (24. Rd4 $11 {remains equal.}) 24... Rfd8 $1 $17 {[%emt 0:00:38]} 25. axb5 {[%emt 0:00:22]} axb5 {[%emt 0:00:21]} 26. Qb3 {[%emt 0:01:26] [#]} Qb7 $1 {[%emt 0:00:32]} ({Much weaker is} 26... Qxh4 $6 27. Qxb5 Qg5 28. Ra5 $11) 27. Rab1 {[%emt 0:00:31]} Rxd5 {[%emt 0:00:23]} 28. Rxd5 {[%emt 0:00:22]} Rxd5 {[%emt 0:00:21]} 29. Qb4 {[%emt 0:00:37]} Qd7 {[%emt 0:00:23]} 30. Qb3 {[%emt 0:00:29]} Rc5 {[%emt 0:00:56]} (30... Qf5 $19 31. Re1 Re5) 31. Qb4 {[%emt 0:00:33]} (31. Rd1 $17 {was necessary.} Qc7 32. Qa3) 31... Qc7 $19 {[%emt 0:00:47]} 32. Qe1 {[%emt 0:00:28]} Qe5 {[%emt 0:00:32]} 33. Qd2 {[%emt 0:00:31]} Rd5 {[%emt 0:00:23]} 34. Qc2 {[%emt 0:00:30]} Qf5 {[%emt 0:00:29]} 35. Qxf5 {[%emt 0:00:30]} Rxf5 {[%emt 0:00:25]} ({Don't play} 35... gxf5 36. Ra1 $17) 36. Rc1 {[%emt 0:00:30]} Kf8 {[%emt 0:00:26]} 37. Rc7 {[%emt 0:00:27]} Ke8 {[%emt 0:00:20]} 38. f3 {[%emt 0:00:29]} (38. Ra7 $17 {might work better.}) 38... Kd8 $19 {[%emt 0:00:21]} 39. Ra7 {[%emt 0:00:28]} Kc8 {[%emt 0:00:21]} 40. Kf2 {[%emt 0:00:37]} b4 {[%emt 0:00:57]} 41. Ke3 {[%emt 0:00:27]} Rd5 {[%emt 0:00:30]} ({Better is} 41... b3 $17 {Hoping for ...b2.} 42. Kd2 Rc5) 42. Rxf7 $11 {[%emt 0:00:31]} b3 {[%emt 0:00:29]} 43. Rf4 $1 {[%emt 0:00:30]} Rb5 {[%emt 0:00:21]} 44. Rc4+ {[%emt 0:00:23]} Kd7 {[%emt 0:00:43]} 45. Rc1 {[%emt 0:00:21]} Ke6 {[%emt 0:00:27]} 46. Kd4 $2 {[%emt 0:00:46][%mdl 8192] [#]} (46. Kf4 $11) 46... Kf5 $1 $19 {[%emt 0:01:15]} 47. Rb1 {[%emt 0:00:32]} Kf4 {[%emt 0:00:35]} 48. Kc4 {[%emt 0:00:28]} Rb8 {[%emt 0:00:23]} 49. Rb2 {[%emt 0:00:32]} Kg3 {[%emt 0:00:21]} 50. Kd4 {[%emt 0:00:30]} Kxh4 {[%emt 0:00:22]} 51. Ke5 {[%emt 0:00:30]} Kg3 {[%emt 0:01:31]} 52. Kf6 {[%emt 0:00:24]} Rb6+ {[%emt 0:00:22]} 53. Kg5 {[%emt 0:00:28]} h4 {[%emt 0:00:22]} 54. f4 {[%emt 0:00:26]} Rb5+ {[%emt 0:00:21]} 55. Kxg6 {[%emt 0:00:25]} Kxf4 {[%emt 0:00:21]} 56. Kf6 {[%emt 0:00:43]} Rb6+ {[%emt 0:00:23]} 57. Ke7 {[%emt 0:00:23]} Ke3 {[%emt 0:00:21]} 58. Kd7 {[%emt 0:00:24]} Kd3 {[%emt 0:00:22]} 59. Kc7 {[%emt 0:00:24]} Rb4 {[%emt 0:00:22]} 60. Kc6 {[%emt 0:00:30]} Kc3 {[%emt 0:00:21]} 61. Rb1 {[%emt 0:00:27]} b2 {[%emt 0:00:25]} 62. Kc5 {[%emt 0:00:22]} Rg4 {[%emt 0:00:22]} 0-1